[Event "ITT 1st Parada Jamundi 2022"]
[Site "Jamundi Valle"]
[Date "2022.12.09"]
[Round "7.6"]
[White "Campos Gomez, Manuel"]
[Black "Argote Heredia, Valentina"]
[Result "1-0"]
[ECO "A38"]
[WhiteElo "2322"]
[BlackElo "2140"]
[Annotator "TA"]
[PlyCount "137"]
[EventDate "2022.12.05"]
[EventType "swiss"]
[EventCountry "COL"]
[SourceTitle "playchess.com"]
[Source "ChessBase"]
[SourceQuality "1"]
[TimeControl "5400+30"]

{[%evp 16,137,14,14,36,39,45,52,52,38,60,42,45,47,35,36,79,59,78,60,71,40,48,32,49,32,47,0,24,0,0,0,0,0,23,-16,-14,0,56,55,53,47,44,50,63,0,0,0,0,0,0,0,86,87,107,111,104,107,112,95,149,108,118,79,100,70,130,111,153,156,193,171,184,196,196,181,182,155,222,222,156,170,211,196,1031,175,367,0,535,529,4087,4079,3944,3685,1876,1821,1391,1383,29973,29974,29973,29974,29972,29975,29975,29971,29971,29974,29972,3121,2514,1471,1243,870,2487,1782,29978,29979,29979,29980,1343,677,29990,29991]} 1. Nf3 {[%emt 0:02:26]} Nf6 {[%emt 0:00:21]} 2. g3 {[%emt 0:00:08]} g6 {[%emt 0:00:57]} 3. Bg2 {[%emt 0:00:15]} Bg7 {[%emt 0:00:06]} 4. O-O {[%emt 0:00:08]} c5 {[%emt 0:00:27]} 5. c4 {[%emt 0:02:06]} O-O {[%emt 0:00:20]} 6. Nc3 {[%emt 0:00:13]} Nc6 {[%emt 0:00:24]} 7. d3 {[%emt 0:02:36]} d6 {[%emt 0:03:36]} 8. a3 {[%emt 0:00:32]} Bd7 {[%emt 0:04:46]} 9. Rb1 {[%emt 0:00:27]} Rb8 {[%emt 0:09:59] A38: Symmetrical English vs ...g6: 4 Bg2 Bg7 5 Nf3 Nf6.} 10. b4 {[%emt 0:02:25]} Ng4 {[%emt 0:02:46]} 11. Bd2 {[%emt 0:01:07]} b6 {[%emt 0:05:16] White is slightly better.} 12. h3 {[%emt 0:04:36]} Nge5 {[%emt 0:02:29] [#]} 13. Ne1 $146 {[%emt 0:02:35] Hoping for f4.} (13. Nh4 $5 {[%cal Rf2f4]}) ({Predecessor:} 13. Nxe5 Bxe5 14. b5 Nd4 15. e3 Ne6 16. f4 Bg7 17. Kh2 Nc7 18. a4 e5 19. Nd5 Nxd5 20. Bxd5 Qc8 21. Bg2 {½-½ (21) Gallardo Banez,A (1915)-Ingelaere,F (1767) Maastricht 2011}) 13... f5 {[%emt 0:01:26]} 14. b5 {[%emt 0:10:54]} Nd4 {[%emt 0:00:10]} 15. Nd5 {[%emt 0:00:15]} (15. e3 $5 Ne6 $8 16. f4 $11) 15... Be8 {[%emt 0:05:05]} 16. a4 {[%emt 0:10:18]} (16. Bg5 $5 {[%cal Rd5e7]} Rf7 17. Bh4 $14) 16... Nd7 {[%emt 0:06:38]} 17. e3 {[%emt 0:05:50]} Ne6 {[%emt 0:00:04]} 18. a5 {[%emt 0:04:16] White is more active.} Nc7 {[%emt 0:01:43]} 19. axb6 {[%emt 0:00:07]} axb6 {[%emt 0:00:08]} 20. Nc3 {[%emt 0:01:01]} e6 {[%emt 0:00:52]} 21. Nc2 {[%emt 0:06:17]} (21. e4 $14) 21... Bf7 {[%emt 0:05:57]} 22. Qe2 {[%emt 0:00:47]} d5 {[%emt 0:00:22]} 23. Rfd1 {[%emt 0:02:45]} Qe7 {[%emt 0:07:29]} 24. Be1 {[%emt 0:02:14]} g5 {[%emt 0:01:20]} 25. cxd5 {[%emt 0:01:18]} exd5 {[%emt 0:00:10]} 26. d4 {[%emt 0:00:09]} Nf6 {[%emt 0:03:16]} ({Black should play} 26... Qd6 $11) 27. dxc5 $14 {[%emt 0:06:06]} bxc5 {[%emt 0:02:24]} 28. b6 {[%emt 0:03:06]} Na8 {[%emt 0:00:04]} 29. Nxd5 {[%emt 0:00:32]} Nxd5 {[%emt 0:00:09]} 30. Bxd5 {[%emt 0:01:57]} ({White should try} 30. Rxd5 $14 Nxb6 31. Rxf5) 30... Bxd5 $11 {[%emt 0:01:26]} 31. Rxd5 {[%emt 0:00:02] [#] Threatens to win with Qc4.} Nxb6 {[%emt 0:00:06]} 32. Rdd1 {[%emt 0:00:23]} f4 {[%emt 0:04:16]} 33. g4 {[%emt 0:02:37]} Nd7 {[%emt 0:01:53]} (33... Qe4 $11) 34. Qc4+ $16 {[%emt 0:02:11]} Kh8 {[%emt 0:01:24]} 35. Rxb8 {[%emt 0:00:15]} Rxb8 {[%emt 0:01:22]} 36. exf4 {[%emt 0:01:11]} gxf4 {[%emt 0:00:25]} 37. Qxf4 {[%emt 0:00:18][%cal Od1d7]} Rf8 {[%emt 0:05:30]} (37... Ne5 $142) 38. Qd6 {[%emt 0:02:22]} Qe4 {[%emt 0:00:16] Strongly threatening ...Ne5.} 39. Qxd7 {[%emt 0:03:55]} Qxc2 {[%emt 0:00:06]} 40. Qd3 {[%emt 0:00:15] Inhibits Bd4.} Qb2 {[%emt 0:02:26]} (40... Qxd3 $14 41. Rxd3 Rc8) 41. Rd2 {[%emt 0:01:46]} Qa1 {[%emt 0:00:53]} 42. Re2 $36 {[%emt 0:00:25][%mdl 2048] White is on the roll.} Bd4 {[%emt 0:02:24][%cal Of8f2] ...Rxf2! is the strong threat.} 43. Kg2 {[%emt 0:00:13]} Qa8+ {[%emt 0:00:26]} 44. f3 {[%emt 0:01:06]} Re8 {[%emt 0:01:03]} 45. Rxe8+ {[%emt 0:02:37]} Qxe8 $18 {[%emt 0:00:03][%mdl 4096] Endgame KQB-KQB} 46. Bc3 {[%emt 0:00:27]} Qe5 {[%emt 0:00:23]} (46... Qd8 $16 47. f4 Kg7 48. Bxd4+ cxd4) 47. Bxd4 {[%emt 0:00:06]} cxd4 {[%emt 0:00:04] KQ-KQ} 48. h4 {[%emt 0:00:14][%cal Bh3h4,Bh4h5][%mdl 32]} Kg7 {[%emt 0:01:26]} 49. h5 {[%emt 0:01:06] aiming for Qe4.} Kf6 $2 {[%emt 0:01:36] [#]} (49... Qd6 50. Kf1 h6) 50. Kf1 $2 {[%emt 0:08:53]} (50. Qxh7 Qe2+ 51. Kg1 (51. Kg3 Qe1+ 52. Kg2 Qe2+ 53. Kh3 Qf1+ 54. Kh4 Qf2+ 55. Kh3 Qf1+ 56. Kg3 Qe1+ 57. Kg2 Qe2+ $11) 51... Qe1+ 52. Kh2 (52. Kg2 Qe2+ 53. Kh3 Qf1+ 54. Kh4 Qe1+ 55. Kh3 Qf1+ 56. Kh4 Qe1+ 57. Kh3 Qf1+ $11) 52... Qe2+ 53. Kh3 (53. Kg3 Qe1+ 54. Kh3 Qf1+ 55. Kh4 Qe1+ 56. Kh3 Qf1+ 57. Kh4 Qe1+ 58. Kh3 $11) 53... Qf1+ 54. Kh4 (54. Kg3 Qe1+ 55. Kh3 Qf1+ 56. Kh4 Qe1+ 57. Kh3 Qf1+ $11) 54... Qe1+ 55. Kh3 Qf1+ 56. Kh4 (56. Kg3 Qe1+ 57. Kh3 Qf1+ $11) 56... Qe1+ 57. Kh3 Qf1+ $11) (50. Qe4 $1 {[%cal Re4e5] Threatening mate with Qxe5+.} Qb5 51. Qxd4+ (51. Qxh7 Qe2+ 52. Kg1 Qe1+ 53. Kh2 Qe2+ 54. Kh3 Qf1+ 55. Kh4 Qe1+ 56. Kh3 Qf1+ 57. Kh4 Qe1+ 58. Kh3 Qf1+ $11) 51... Ke6 52. Kf2) 50... Qc5 {[%emt 0:03:29]} (50... Qf4) 51. Kg2 $2 {[%emt 0:01:28]} (51. Qxh7 $18 {[%cal Oh7f5] White wants to mate with Qf5+!} Qc1+ 52. Kg2 Qd2+ 53. Kh3) 51... Kg7 $2 {[%emt 0:01:05][%mdl 8192]} (51... Qe5 $1 $11) 52. Qe4 {[%emt 0:00:44]} Qb4 {[%emt 0:05:15]} 53. Qe5+ {[%emt 0:00:45]} Kf7 {[%emt 0:01:00]} 54. Qf5+ {[%emt 0:00:18]} Kg8 {[%emt 0:01:34]} 55. Qe6+ {[%emt 0:00:19]} Kf8 {[%emt 0:00:07]} 56. Qf6+ {[%emt 0:00:13]} Kg8 {[%emt 0:01:28]} 57. h6 {[%emt 0:00:57][%csl Gh6][%cal Rf6g7]} Qb2+ {[%emt 0:00:45]} 58. Kg3 {[%emt 0:00:58][%csl Gh6][%cal Rf6g7]} Qb8+ {[%emt 0:00:05]} 59. f4 {[%emt 0:01:18][%csl Gh6][%cal Rf6g7]} Qa7 {[%emt 0:00:05]} 60. Qd8+ {[%emt 0:00:59]} Kf7 {[%emt 0:00:06]} 61. Qd5+ {[%emt 0:00:33]} Kf8 62. g5 {[%emt 0:05:10]} (62. Qf5+ $142 Kg8 63. Qe5 Qa3+ 64. Kh4 Kf7 65. Qg7+ Ke6 66. Qg8+ Kf6 67. Qh8+ Ke6 68. Qxh7) 62... Qa3+ {[%emt 0:10:19]} 63. Kg4 {[%emt 0:00:00]} Qd3 {[%emt 0:00:00] Prevents g6.} 64. Qf3 {[%emt 0:00:00]} Qa6 {[%emt 0:00:00]} 65. Qe4 {[%emt 0:00:00] Intending Qf5+ and mate.} d3 {[%emt 0:00:00]} 66. Qf5+ {[%emt 0:00:00]} ({And not} 66. Qxh7 Qe6+ 67. f5 (67. Qf5+ Qxf5+ 68. Kxf5 d2 69. Ke5 d1=Q 70. Ke4 Kf7 71. h7 Qc2+ 72. Kd5 Qxh7 73. Ke5 Qd3 74. f5 Qe3+ 75. Kd6 Qxg5 76. Kd5 Kf6 77. Kd4 Kxf5 78. Kd3 Kf4 79. Kc4 Ke3 80. Kb3 Kd3 81. Kb4 Qf5 82. Ka3 Kc3 83. Ka4 Qg5 84. Ka3 Qa5#) 67... Qe4+ 68. Kg3 Qe3+ 69. Kh4 Qd4+ 70. Kh3 (70. Kh5 d2 71. Qc7 d1=Q+ 72. Kg6 Qd6+ 73. Qxd6+ Qxd6+ 74. Kh5 Qe5 75. h7 Kg7 76. Kg4 Kxh7 77. f6 Qe4+ 78. Kh3 Qf3+ 79. Kh2 Kg6 80. f7 Kxg5 81. f8=Q Qxf8 82. Kg3 Qf7 83. Kh3 Qf4 84. Kg2 Kg4 85. Kg1 Kg3 86. Kh1 Qf1#) 70... Qe3+ 71. Kh4 Qe4+ 72. Kg3 Qe3+ 73. Kh4 $11) 66... Ke8 {[%emt 0:00:00]} 67. Qe5+ {[%emt 0:00:00]} ({Weaker is} 67. Qxh7 d2 68. Qh8+ Ke7 69. Qh7+ Kd8 70. Qh8+ Ke7 71. Qh7+ Kd8 72. Qh8+ Ke7 $11) 67... Kd7 {[%emt 0:00:00]} 68. Qg7+ {[%emt 0:00:00]} Kd6 {[%emt 0:00:07]} 69. Qf6+ {[%emt 0:00:00] Weighted Error Value: White=0.27 (precise) /Black=0.45} 1-0

[Event "ITT 1st Parada Jamundi 2022"]
[Site "Jamundi Valle"]
[Date "2022.12.09"]
[Round "7.7"]
[White "Cori Quispe, Kevin Joel"]
[Black "Valdes Martinez, Miguel A."]
[Result "1-0"]
[ECO "B32"]
[WhiteElo "2469"]
[BlackElo "2104"]
[Annotator "TA"]
[PlyCount "119"]
[EventDate "2022.12.05"]
[EventType "swiss"]
[EventCountry "COL"]
[SourceTitle "playchess.com"]
[Source "ChessBase"]
[SourceQuality "1"]
[TimeControl "5400+30"]

{[%evp 10,119,24,25,35,29,29,25,27,24,28,9,37,27,27,22,15,-8,34,41,80,77,89,48,83,24,28,15,26,17,69,78,85,80,82,86,81,91,89,77,140,120,147,149,176,162,161,167,167,157,158,148,151,142,139,143,322,133,125,119,127,130,121,125,148,140,135,136,168,153,165,96,165,73,165,161,164,160,153,156,150,147,237,245,244,237,234,215,606,599,745,328,495,477,473,471,544,544,539,539,675,505,929,840,883,846,5143,2470,5301,5328,4698,1029]} 1. e4 {[%emt 1:31:00]} c5 {[%emt 0:05:34]} 2. Nf3 {[%emt 0:00:00]} Nc6 {[%emt 0:00:06]} 3. d4 {[%emt 0:00:00]} cxd4 {[%emt 0:00:09]} 4. Nxd4 {[%emt 0:00:00]} e5 {[%emt 0:00:05]} 5. Nb5 {[%emt 0:00:00]} d6 {[%emt 0:00:12]} 6. c4 {[%emt 0:00:00]} g6 {[%emt 0:00:24] 6...Be6 is the modern continuation. B32: Sicilian: Löwenthal and Kalashnikov Variations.} 7. N1c3 {[%emt 0:00:00]} a6 {[%emt 0:00:06]} 8. Na3 {[%emt 0:00:00]} Be6 {[%emt 0:00:39] White has an edge.} 9. Be3 {[%emt 0:00:00]} Bg7 {[%emt 0:01:16]} 10. Be2 {[%emt 0:00:00]} Nf6 {[%emt 0:00:11]} 11. O-O {[%emt 0:00:00]} O-O {[%emt 0:00:17]} 12. Qd2 {[%emt 0:00:00]} Nd4 {[%emt 0:00:41]} 13. Bd3 {[%emt 0:00:00] [#]} Nh5 $146 {[%emt 0:07:34]} (13... Ng4 {keeps more tension.} 14. Bg5 f6 15. Be3 Nxe3 16. fxe3 Bh6) ({Predecessor:} 13... Rc8 14. f3 Nh5 15. Nd5 Bxd5 16. cxd5 Nf4 17. Bxd4 Nxd3 18. Be3 Nf4 19. g3 Nh5 {1-0 (60) Vergara Jofre,F (2151)-Sort Sererols,J (1985) Barbera del Valles 2022}) 14. Rad1 {[%emt 0:00:00]} f5 {[%emt 0:03:22]} 15. exf5 {[%emt 0:00:00]} gxf5 {[%emt 0:02:50]} 16. f3 {[%emt 0:00:00]} Kh8 {[%emt 0:22:41][%cal Oh5f4]} 17. Nc2 {[%emt 0:00:00]} (17. Bxd4 $16 {Be3 is the strong threat.} exd4 18. Ne2) 17... Nc6 {[%emt 0:11:03]} 18. Be2 {[%emt 0:00:00]} f4 {[%emt 0:10:40]} 19. Bf2 {[%emt 0:00:00]} Bf5 {[%emt 0:02:52]} (19... Rg8 $11) 20. Bd3 $14 {[%emt 0:00:00]} Be6 {[%emt 0:07:35]} 21. Ne4 {[%emt 0:00:00]} Rg8 {[%emt 0:01:54]} 22. Rfe1 {[%emt 0:00:00][%cal Bf1e1,Be1e4,Be4e5][%mdl 32]} Bf8 {[%emt 0:01:05]} 23. Bf1 {[%emt 0:00:00]} Bf5 {[%emt 0:05:50]} 24. Nb4 {[%emt 0:00:00] Threatens to win with Nxc6.} (24. Nxd6 $2 Bxd6 25. Qxd6 Bxc2 $19) 24... Rg6 {[%emt 0:14:06]} (24... Bxe4 $142 25. Rxe4 (25. fxe4 Nxb4 26. Qxb4 Rg7 $11) 25... Qg5) 25. c5 {[%emt 0:00:00]} Bxe4 {[%emt 0:00:10]} 26. Rxe4 {[%emt 0:00:00]} dxc5 {[%emt 0:00:42]} 27. Nxc6 {[%emt 0:00:00]} Qxd2 {[%emt 0:00:01]} 28. Rxd2 {[%emt 0:00:00]} Rxc6 {[%emt 0:00:21]} 29. Rxe5 {[%emt 0:00:00]} Ng7 {[%emt 0:00:26]} 30. Rd7 {[%emt 0:00:00]} b5 {[%emt 0:00:50]} 31. Red5 {[%emt 0:00:00] White has more active pieces.} Rac8 {[%emt 0:01:03]} 32. Bd3 {[%emt 0:00:00]} c4 $2 {[%emt 0:00:36]} (32... R8c7 $16 {is a better defense.} 33. Rxc7 Rxc7) 33. Bc2 {[%emt 0:00:00] This pair of bishops is nice.} (33. Be4 $18) 33... c3 $16 {[%emt 0:00:10]} 34. b3 {[%emt 0:00:00]} Re6 {[%emt 0:00:37] aiming for ...Re2.} 35. Kf1 {[%emt 0:00:00] Inhibits Re2.} Rce8 {[%emt 0:00:16]} 36. Rc7 {[%emt 0:00:00]} b4 {[%emt 0:00:54]} 37. Be4 {[%emt 0:00:00]} Rd6 {[%emt 0:00:44]} 38. Rxd6 {[%emt 0:00:00]} Bxd6 {[%emt 0:00:00]} 39. Rc6 {[%emt 0:00:00][%csl LRa6,LRd6]} Be5 {[%emt 0:00:01]} 40. Rxa6 {[%emt 0:00:00]} (40. Bc5 $18) 40... Rd8 {[%emt 0:01:06]} (40... Ne6 $16 {might work better.}) 41. Rb6 {[%emt 0:00:00]} (41. Be1 $18 {is more deadly.}) 41... Rd2 {[%emt 0:00:49]} (41... Rd1+ $16 {was worth a try.} 42. Be1 Ra1) 42. Be1 $1 $18 {[%emt 0:00:00]} (42. Rxb4 $6 c2 43. Bxc2 Rxc2 $11) 42... Rd1 {[%emt 0:00:43]} 43. Ke2 {[%emt 0:04:37]} (43. Rxb4 c2 44. Bxc2 Rxe1+ $1 45. Kxe1 Bc3+ 46. Ke2 Bxb4 $11) 43... Ra1 {[%emt 0:00:01]} 44. Ra6 {[%emt 0:00:05] Hoping for Ra8+.} (44. Rxb4 $6 c2 45. Bd2 (45. Bxc2 Rxe1+ 46. Kxe1 Bc3+ 47. Ke2 Bxb4 $11) 45... c1=Q 46. Bxc1 Rxc1 $11) 44... Kg8 {[%emt 0:00:03]} 45. Bf2 {[%emt 0:00:04] Against Bd4} Kf7 {[%emt 0:00:52] [#]} (45... Ne8 $16) 46. Ra7+ $1 {[%emt 0:02:12]} (46. Bxh7 $6 Ne6 $16) 46... Ke6 {[%emt 0:00:10]} 47. Bc5 {[%emt 0:01:16]} (47. Bxh7 Nf5 48. Ra6+ Bd6 $14) 47... Nf5 {[%emt 0:01:28]} 48. Ra6+ {[%emt 0:00:22]} ({Not} 48. Rxh7 Rxa2+ 49. Ke1 Rxg2 50. Bxf5+ (50. Bxb4 $2 {is the wrong capture.} c2 $19) (50. Rh5 $2 Ne3 $19) 50... Kxf5 $17) (48. Bxb4 Nd4+ 49. Kd3 c2 50. Ra6+ (50. Rxh7 $2 c1=Q $19) 50... Kd7 $11) 48... Bd6 $2 {[%emt 0:00:30]} (48... Nd6 49. Bxh7 (49. Bxb4 Rg1 $16) 49... Rh1) 49. Bxb4 {[%emt 0:00:43]} Nd4+ {[%emt 0:00:13]} 50. Kf2 {[%emt 0:00:04]} (50. Kd3 $142 Rd1+ 51. Kc4) 50... Rxa2+ {[%emt 0:01:32]} (50... Nb5 {keeps fighting.} 51. a4 Ra2+ 52. Kf1 Ra1+ 53. Ke2 Ra2+ 54. Kd1 Ke7 55. Bxd6+ Nxd6) 51. Rxa2 {[%emt 0:00:05] And now Ra6 would win. White is clearly winning.} Bxb4 {[%emt 0:00:00]} 52. Bxh7 {[%emt 0:00:17][%mdl 4096] Endgame KRB-KBN} Bc5 {[%emt 0:00:00]} 53. Ke1 {[%emt 0:00:13] Prevents c2.} Bb4 {[%emt 0:00:37] ( -> ...c2+)} 54. Kd1 {[%emt 0:00:10] Prevents c2+.} Kd5 {[%emt 0:00:11]} 55. Ra8 {[%emt 0:00:30]} Nb5 {[%emt 0:00:16]} (55... Be7 $142 56. Rc8 Nb5) 56. Rb8 {[%emt 0:00:24]} Kc5 {[%emt 0:00:07]} 57. h4 {[%emt 0:00:15]} Nc7 {[%emt 0:00:52]} 58. Be4 {[%emt 0:00:15] Strongly threatening h5.} Na6 {[%emt 0:00:18]} 59. Ra8 {[%emt 0:00:14]} Nc7 {[%emt 0:00:09]} 60. Rc8 {[%emt 0:00:10] Weighted Error Value: White=0.24 (precise) /Black=0.38} 1-0

[Event "ITT 1st Parada Jamundi 2022"]
[Site "Jamundi Valle"]
[Date "2022.12.09"]
[Round "7.8"]
[White "Malka, Samuel"]
[Black "Herrera, Juan Sebastian"]
[Result "0-1"]
[ECO "E99"]
[WhiteElo "2265"]
[BlackElo "2297"]
[Annotator "TA"]
[PlyCount "124"]
[EventDate "2022.12.05"]
[EventType "swiss"]
[EventCountry "COL"]
[SourceTitle "playchess.com"]
[Source "ChessBase"]
[SourceQuality "1"]
[TimeControl "5400+30"]

{[%evp 21,124,48,68,51,56,57,47,52,50,53,49,12,11,-4,89,79,215,202,258,181,189,187,195,194,191,180,171,200,189,140,268,277,276,271,240,193,236,204,217,209,205,162,162,155,155,155,155,74,155,155,155,155,173,121,188,149,187,187,194,182,204,180,229,181,223,137,140,129,114,65,68,65,78,7,168,117,87,0,158,0,72,0,24,24,24,24,24,0,0,0,0,-16,-17,-240,-234,-422,-431,-1010,-1017,-29985,-29986,-29986,-29987,-29986,-29987]} 1. d4 {[%emt 0:00:05]} Nf6 {[%emt 0:02:49]} 2. c4 {[%emt 0:01:13]} g6 {[%emt 0:00:07]} 3. Nc3 {[%emt 0:00:50]} Bg7 {[%emt 0:00:08]} 4. e4 {[%emt 0:01:07]} d6 {[%emt 0:00:05]} 5. Be2 {[%emt 0:01:59]} O-O {[%emt 0:00:08]} 6. Nf3 {[%emt 0:00:10]} e5 {[%emt 0:00:19]} 7. O-O {[%emt 0:00:13]} Nc6 {[%emt 0:01:17]} 8. d5 {[%emt 0:00:21]} Ne7 {[%emt 0:00:07]} 9. Ne1 {[%emt 0:00:32]} Nd7 {[%emt 0:01:37]} 10. Nd3 {[%emt 0:00:18]} f5 {[%emt 0:00:12]} 11. f3 {[%emt 0:00:10]} Nf6 {[%emt 0:04:58]} 12. b4 {[%emt 0:01:31] 12.c5 is setting a new trend. E99: King's Indian: Classical Main Line: 9 Ne1 Nd7 10 f3 f5.} a5 {[%emt 0:00:44]} 13. bxa5 {[%emt 0:00:13]} Rxa5 {[%emt 0:00:15]} 14. a4 {[%emt 0:00:21] White is slightly better.} b6 {[%emt 0:00:30][%cal Bb7b6,Bb6a5][%mdl 32]} 15. Bd2 {[%emt 0:02:31]} Ra8 {[%emt 0:00:45] [#]} 16. a5 $146 {[%emt 0:07:17]} ({Predecessor:} 16. Nf2 Re8 17. Nb5 Bf8 18. a5 c6 19. dxc6 Nxc6 20. Bg5 Kg7 21. exf5 gxf5 22. Bxf6+ Kxf6 {1-0 (29) Mikhalevski,V (2552)-Kraus,O (2363) Jerusalem 2021}) 16... bxa5 {[%emt 0:01:12]} 17. c5 {[%emt 0:00:19][%cal Bc4c5,Bc5c6][%mdl 32]} Rf7 {[%emt 0:01:21]} (17... fxe4 $11 18. fxe4 c6) 18. Nb2 {[%emt 0:06:04]} f4 {[%emt 0:20:44]} (18... dxc5 $16 {was called for.} 19. Be3 Bd7) 19. Nb5 $1 $18 {[%emt 0:03:34]} Ne8 {[%emt 0:01:32]} 20. c6 {[%emt 0:03:33]} (20. Bxa5 dxc5 21. d6 Rxa5 22. Rxa5 cxd6 $18) 20... g5 {[%emt 0:05:47]} 21. Rxa5 {[%emt 0:02:44]} Rxa5 {[%emt 0:00:51]} 22. Bxa5 {[%emt 0:00:06]} h5 {[%emt 0:00:23]} 23. Nd3 {[%emt 0:03:58]} Ng6 {[%emt 0:05:32]} 24. Nf2 {[%emt 0:01:49] Prevents g4.} Bf8 {[%emt 0:08:24]} 25. Bd2 {[%emt 0:04:37]} (25. Na7 $18) 25... Ba6 {[%emt 0:07:18]} (25... Bh6 $16 26. Na7 Nh4) 26. Qa4 {[%emt 0:02:10]} (26. Nxd6 Bxd6 27. Bxa6 Qa8 $18) 26... Bxb5 {[%emt 0:00:09]} 27. Qxb5 {[%emt 0:00:24]} ({But not} 27. Bxb5 $6 Nf6 28. Be2 g4 29. fxg4 Nh4 $18) 27... Nh4 {[%emt 0:00:44]} 28. Qb3 {[%emt 0:07:35]} Qa8 {[%emt 0:02:09]} 29. Qc3 {[%emt 0:04:49]} Nf6 {[%emt 0:03:42]} 30. Ra1 {[%emt 0:02:24] Prevents g4.} Qd8 {[%emt 0:02:13]} 31. g4 {[%emt 0:06:08]} hxg4 {[%emt 0:05:10]} 32. fxg4 {[%emt 0:00:15]} ({Much less strong is} 32. Nxg4 $6 Nxg4 33. fxg4 Qb8 $14) 32... Qe8 {[%emt 0:03:58][%cal Of6d5]} 33. Qa5 {[%emt 0:06:37]} Re7 {[%emt 0:00:36]} 34. Qa8 {[%emt 0:02:39] Against Qb8} (34. Qb4 $142) 34... Qg6 {[%emt 0:00:02] [#]} (34... Qxa8 $142 35. Rxa8 Re8 36. Rxe8 Nxe8) 35. Ra4 $1 $16 {[%emt 0:03:41][%cal Ba1a4,Ba4a3,Ba3b3,Bb3b7][%mdl 32]} Kg7 {[%emt 0:00:12][%cal Of6d5]} 36. Qb8 {[%emt 0:03:07]} Qf7 {[%emt 0:01:22]} 37. Ba5 {[%emt 0:04:14]} (37. Qb3 $18) 37... Kg6 {[%emt 0:02:29]} (37... Kg8 $16 38. Rb4 Kg7) 38. Ra3 {[%emt 0:01:51]} Kg7 {[%emt 0:01:11]} 39. Qb1 {[%emt 0:03:42]} Qe8 {[%emt 0:00:27]} 40. Be1 {[%emt 0:00:41]} Qg6 {[%emt 0:00:39]} 41. Rb3 {[%emt 0:00:48]} Rf7 {[%emt 0:01:11]} (41... Kg8 {keeps fighting.} 42. Ba5 Kh7) 42. Ba6 {[%emt 0:02:59]} Re7 {[%emt 0:04:40]} 43. Qd3 {[%emt 0:01:48]} Qe8 {[%emt 0:00:24] [#]} 44. Rb7 $1 {[%emt 0:01:18]} Qa8 {[%emt 0:03:30][%cal Oh4f3]} 45. Ba5 {[%emt 0:01:27]} (45. Bb4 $16) 45... Ne8 $1 $14 {[%emt 0:00:01]} 46. Nh3 {[%emt 0:01:54]} Kh6 {[%emt 0:00:05]} 47. Be1 {[%emt 0:01:37]} (47. Kh1 $16) 47... Ng6 $2 {[%emt 0:02:31]} (47... Nf3+ $1 $11 {and Black stays safe.} 48. Qxf3 Qxa6) 48. Nf2 {[%emt 0:02:43]} ({Better is} 48. Qb5 $18 {Rb8 is the strong threat.} Nh4 49. Bxh4 gxh4 50. Kg2) 48... Nh4 $16 {[%emt 0:01:26]} 49. Nh3 {[%emt 0:00:11]} (49. Bc3 $142) 49... Ng6 {[%emt 0:09:04]} 50. Nf2 {[%emt 0:00:04]} (50. Qb5 $142 {Strongly threatening Rb8.} Nh4 51. Bxh4 gxh4 52. Kg2) 50... Nh4 $1 {[%emt 0:00:00]} 51. Nd1 {[%emt 0:00:05]} (51. Qa3 $16) 51... Nf3+ {[%emt 0:00:00]} 52. Qxf3 {[%emt 0:00:09]} Qxa6 {[%emt 0:00:00]} 53. h4 {[%emt 0:00:51]} Nf6 {[%emt 0:00:00][%cal Be8f6,Bf6h5,Bh5g3][%mdl 32]} 54. hxg5+ {[%emt 0:00:26]} (54. Ne3 $5 {[%cal Re3f5]} Kg6 55. Nf5 $14) 54... Kxg5 {[%emt 0:00:00]} 55. Nf2 $1 {[%emt 0:00:20]} Qa1 {[%emt 0:00:00] Really sharp!} 56. Kf1 {[%emt 0:00:17]} Rh7 {[%emt 0:00:00]} 57. Nh3+ $2 {[%emt 0:00:32]} (57. Rb3 $11 {and White has nothing to worry.}) 57... Kg6 $19 {[%emt 0:00:00]} 58. g5 $2 {[%emt 0:00:39]} (58. Nf2 Bh6 59. Rb3) 58... Nh5 {[%emt 0:00:00] ( -> ...Ng3+)} 59. Qg4 {[%emt 0:00:35]} (59. Qc3 $142 Qa6+ 60. Kf2) 59... Ng3+ {[%emt 0:00:00]} 60. Kf2 {[%emt 0:03:59]} Qd4+ {[%emt 0:00:00] Black mates.} 61. Kg2 {[%emt 0:01:32]} Qxe4+ {[%emt 0:00:00]} (61... Nxe4 $2 62. Qe6+ Kh5 63. Qf5 $18) 62. Qf3 {[%emt 0:00:13]} Qxe1 {[%emt 0:00:00] Quite a comeback for Black.   Weighted Error Value: White=0.68/Black=0.22 (precise)} 0-1